[Event "EYTCC U18 Girls 2019"]
[Site "Pardubice"]
[Date "2019.07.13"]
[Round "3.33"]
[White "Stroganova, Karina"]
[Black "Sliwicka, Alicja"]
[Result "0-1"]
[ECO "A46"]
[WhiteElo "1875"]
[BlackElo "2261"]
[Annotator "NA"]
[PlyCount "96"]
[EventDate "2019.07.11"]
[EventType "swiss"]
[EventCountry "CZE"]
[SourceTitle "playchess.com"]
[Source "ChessBase"]
[SourceQuality "1"]
[WhiteTeam "Russia"]
[BlackTeam "Poland"]
[WhiteTeamCountry "RUS"]
[BlackTeamCountry "POL"]
[TimeControl "40/5400+30:1800+30"]

1. d4 {[%emt 0:00:00]} Nf6 {[%emt 0:00:00]} 2. Nf3 {[%emt 0:00:00]} d6 {[%emt 0:00:08]} 3. Bf4 {[%emt 0:00:15]} g6 {[%emt 0:00:18]} 4. e3 {[%emt 0:00:10]} Bg7 {[%emt 0:00:11]} 5. Be2 {[%emt 0:00:24]} O-O {[%emt 0:00:12]} 6. O-O {[%emt 0:00:18]} b6 {[%emt 0:00:53]} 7. h3 {[%emt 0:01:13]} Bb7 {[%emt 0:00:14]} 8. Nc3 {[%emt 0:02:35]} Ne4 {[%emt 0:04:05]} 9. Nxe4 {[%emt 0:03:49]} Bxe4 {[%emt 0:00:11]} 10. Nd2 {[%emt 0:01:10]} Bb7 {[%emt 0:00:15]} 11. Bf3 {[%emt 0:00:23]} Bxf3 {[%emt 0:00:22]} 12. Nxf3 {[%emt 0:01:27]} Nd7 {[%emt 0:00:45]} 13. Bh2 {[%emt 0:01:15]} e5 {[%emt 0:03:06]} 14. c4 {[%emt 0:02:49]} e4 {[%emt 0:02:58]} 15. Nd2 {[%emt 0:00:19]} f5 {[%emt 0:00:57]} 16. f3 {[%emt 0:01:13]} exf3 {[%emt 0:03:20]} 17. Rxf3 {[%emt 0:01:13]} Qe7 {[%emt 0:02:02]} 18. Qb3 {[%emt 0:01:30]} c5 {[%emt 0:07:28]} 19. Raf1 {[%emt 0:27:35]} Kh8 {[%emt 0:02:44]} 20. d5 {[%emt 0:07:49]} Rae8 {[%emt 0:02:24]} 21. Qc2 {[%emt 0:00:35]} Ne5 {[%emt 0:10:20]} 22. R3f2 {[%emt 0:00:59]} Nf7 {[%emt 0:02:35]} 23. Re2 {[%emt 0:06:35]} Qf6 {[%emt 0:07:49]} 24. b3 {[%emt 0:02:22]} Qc3 {[%emt 0:12:15]} 25. Qxc3 {[%emt 0:02:41]} Bxc3 {[%emt 0:00:11]} 26. Nb1 {[%emt 0:01:15]} Be5 {[%emt 0:02:57]} 27. Nd2 {[%emt 0:02:06]} Ng5 {[%emt 0:05:32]} 28. Bxe5+ {[%emt 0:14:00]} Rxe5 {[%emt 0:01:13]} 29. Nf3 {[%emt 0:00:15]} Nxf3+ {[%emt 0:00:20]} 30. gxf3 {[%emt 0:04:15]} Rfe8 {[%emt 0:04:04]} 31. Rfe1 {[%emt 0:01:20]} Kg7 {[%emt 0:04:03]} 32. Kf2 {[%emt 0:00:25]} Kf6 {[%emt 0:02:03]} 33. Kg3 {[%emt 0:02:35]} a6 {[%emt 0:02:48]} 34. a4 {[%emt 0:00:53]} b5 {[%emt 0:02:42]} 35. axb5 {[%emt 0:00:56]} axb5 {[%emt 0:00:10]} 36. Kf2 {[%emt 0:02:07]} Ra8 {[%emt 0:00:53]} 37. Rb1 {[%emt 0:02:35]} b4 {[%emt 0:01:19]} 38. Kg3 {[%emt 0:00:37]} g5 {[%emt 0:03:38]} 39. Kf2 {[%emt 0:00:30]} Re7 {[%emt 0:05:39]} 40. Kg2 {[%emt 0:03:54]} f4 {[%emt 0:01:27]} 41. e4 {[%emt 0:30:39]} Ke5 {[%emt 0:31:22]} 42. Rd2 {[%emt 0:00:49]} Rea7 {[%emt 0:00:27]} 43. Rbb2 {[%emt 0:00:18]} Ra1 {[%emt 0:00:49]} 44. Kf2 {[%emt 0:02:32]} R8a3 {[%emt 0:00:59]} 45. Rd3 {[%emt 0:00:55]} Rc1 {[%emt 0:01:09]} 46. Ke2 {[%emt 0:00:00]} Rh1 {[%emt 0:00:00]} 47. Kd2 {[%emt 0:00:00]} Rh2+ {[%emt 0:00:00]} 48. Kc1 {[%emt 0:00:00]} Ra1+ {[%emt 0:00:00]} 0-1

[Event "EYTCC U18 Girls 2019"]
[Site "Pardubice"]
[Date "2019.07.13"]
[Round "3.34"]
[White "Sowa, Wiktoria"]
[Black "Beliakova, Ilona"]
[Result "0-1"]
[ECO "C24"]
[WhiteElo "2108"]
[BlackElo "1759"]
[Annotator "NA"]
[PlyCount "68"]
[EventDate "2019.07.11"]
[EventType "swiss"]
[EventCountry "CZE"]
[SourceTitle "playchess.com"]
[Source "ChessBase"]
[SourceQuality "1"]
[WhiteTeam "Poland"]
[BlackTeam "Russia"]
[WhiteTeamCountry "POL"]
[BlackTeamCountry "RUS"]
[TimeControl "40/5400+30:1800+30"]

1. e4 {[%emt 0:00:00]} e5 {[%emt 0:00:00]} 2. Bc4 {[%emt 0:00:00]} Nf6 {[%emt 0:00:13]} 3. d3 {[%emt 0:00:20]} Bc5 {[%emt 0:00:30]} 4. Nf3 {[%emt 0:00:26]} d6 {[%emt 0:00:49]} 5. c3 {[%emt 0:00:56]} O-O {[%emt 0:01:33]} 6. O-O {[%emt 0:01:07]} h6 {[%emt 0:01:20]} 7. Nbd2 {[%emt 0:01:04]} Nc6 {[%emt 0:01:18]} 8. Re1 {[%emt 0:01:29]} Bg4 {[%emt 0:06:19]} 9. h3 {[%emt 0:02:31]} Bh5 {[%emt 0:00:20]} 10. Nf1 {[%emt 0:01:15]} a6 {[%emt 0:26:55]} 11. a4 {[%emt 0:02:47]} d5 {[%emt 0:01:20]} 12. exd5 {[%emt 0:04:26]} Nxd5 {[%emt 0:01:28]} 13. g4 {[%emt 0:15:02]} Bg6 {[%emt 0:01:06]} 14. Nxe5 {[%emt 0:01:21]} Nxe5 {[%emt 0:03:25]} 15. Rxe5 {[%emt 0:01:50]} Bxf2+ {[%emt 0:04:09]} 16. Kxf2 {[%emt 0:00:46]} Qf6+ {[%emt 0:01:01]} 17. Qf3 {[%emt 0:00:34]} Qxe5 {[%emt 0:00:17]} 18. Bxd5 {[%emt 0:00:47]} c6 {[%emt 0:02:54]} 19. Bb3 {[%emt 0:01:13]} c5 {[%emt 0:01:29]} 20. Bf4 {[%emt 0:03:36]} Qf6 {[%emt 0:01:24]} 21. Ne3 {[%emt 0:08:21]} Qb6 {[%emt 0:02:43]} 22. Ra3 {[%emt 0:01:52]} c4 {[%emt 0:01:08]} 23. dxc4 {[%emt 0:01:18]} Rad8 {[%emt 0:00:26]} 24. Kg3 {[%emt 0:11:00]} Rd2 {[%emt 0:02:45]} 25. a5 {[%emt 0:04:29]} Qc5 {[%emt 0:04:54]} 26. Qxb7 {[%emt 0:03:16]} Re8 {[%emt 0:09:38]} 27. Qb6 {[%emt 0:04:13]} Rxe3+ {[%emt 0:08:54]} 28. Bxe3 {[%emt 0:00:05]} Qe5+ {[%emt 0:00:06]} 29. Kh4 {[%emt 0:01:03]} Qe7+ {[%emt 0:06:26]} 30. Kg3 {[%emt 0:01:26]} Qe5+ {[%emt 0:00:37]} 31. Kh4 {[%emt 0:00:04]} Rg2 {[%emt 0:08:19]} 32. Qd8+ {[%emt 0:00:17]} Kh7 {[%emt 0:00:10]} 33. Bf2 {[%emt 0:00:25]} f6 {[%emt 0:00:54]} 34. Qd2 {[%emt 0:00:46]} Qg5+ {[%emt 0:00:08] Qd1} 0-1

[Event "EYTCC U18 Girls 2019"]
[Site "Pardubice"]
[Date "2019.07.13"]
[Round "3.35"]
[White "Ferkova, Dominika"]
[Black "Tarasenka, Aliaksandra"]
[Result "1-0"]
[ECO "D07"]
[WhiteElo "2009"]
[BlackElo "2231"]
[Annotator "NA"]
[PlyCount "59"]
[EventDate "2019.07.11"]
[EventType "swiss"]
[EventCountry "CZE"]
[SourceTitle "playchess.com"]
[Source "ChessBase"]
[SourceQuality "1"]
[WhiteTeam "Slovakia"]
[BlackTeam "Belarus"]
[WhiteTeamCountry "SVK"]
[BlackTeamCountry "BLR"]
[TimeControl "40/5400+30:1800+30"]

1. d4 {[%emt 0:00:00]} d5 {[%emt 0:00:00]} 2. c4 {[%emt 0:00:00]} Nc6 {[%emt 0:00:00]} 3. Nf3 {[%emt 0:00:00]} Bg4 {[%emt 0:00:00]} 4. Nc3 {[%emt 0:00:11]} e6 {[%emt 0:01:53]} 5. cxd5 {[%emt 0:00:55]} exd5 {[%emt 0:00:17]} 6. Bf4 {[%emt 0:00:27]} Bd6 {[%emt 0:02:14]} 7. Bg3 {[%emt 0:01:25]} Nge7 {[%emt 0:04:19]} 8. e3 {[%emt 0:02:10]} O-O {[%emt 0:02:08]} 9. Bd3 {[%emt 0:05:45]} Kh8 {[%emt 0:11:54]} 10. Bxd6 {[%emt 0:14:19]} Qxd6 {[%emt 0:00:53]} 11. h3 {[%emt 0:01:12]} Bf5 {[%emt 0:05:03]} 12. O-O {[%emt 0:05:37]} Rad8 {[%emt 0:04:58]} 13. a3 {[%emt 0:06:14]} Qf6 {[%emt 0:15:30]} 14. b4 {[%emt 0:11:03]} Nc8 {[%emt 0:07:40]} 15. Rc1 {[%emt 0:14:48]} Rfe8 {[%emt 0:13:46]} 16. Na4 {[%emt 0:06:13]} Bxd3 {[%emt 0:06:40]} 17. Qxd3 {[%emt 0:00:16]} Re7 {[%emt 0:03:23]} 18. Nc5 {[%emt 0:06:12]} Nd6 {[%emt 0:03:16]} 19. Qb3 {[%emt 0:01:31]} b6 {[%emt 0:11:41]} 20. Qxd5 {[%emt 0:02:41]} Nb5 {[%emt 0:03:29]} 21. Nd7 {[%emt 0:01:19]} Rdxd7 {[%emt 0:00:42]} 22. Qxb5 {[%emt 0:00:26]} Rd6 {[%emt 0:00:36]} 23. Rc2 {[%emt 0:08:08]} h5 {[%emt 0:00:36]} 24. Rfc1 {[%emt 0:00:53]} a6 {[%emt 0:00:27]} 25. Qxh5+ {[%emt 0:01:07]} Kg8 {[%emt 0:00:07]} 26. Ng5 {[%emt 0:00:54]} g6 {[%emt 0:00:29]} 27. Qh7+ {[%emt 0:00:16]} Kf8 {[%emt 0:00:04]} 28. Rxc6 {[%emt 0:00:07]} Ke8 {[%emt 0:01:17]} 29. Qg8+ {[%emt 0:00:26]} Kd7 {[%emt 0:00:06]} 30. Rxc7# {[%emt 0:00:04]} 1-0

[Event "EYTCC U18 Girls 2019"]
[Site "Pardubice"]
[Date "2019.07.13"]
[Round "3.36"]
[White "Zeliantsova, Kseniya"]
[Black "Sankova, Stella"]
[Result "0-1"]
[ECO "B51"]
[WhiteElo "1907"]
[BlackElo "1997"]
[Annotator "NA"]
[PlyCount "76"]
[EventDate "2019.07.11"]
[EventType "swiss"]
[EventCountry "CZE"]
[SourceTitle "playchess.com"]
[Source "ChessBase"]
[SourceQuality "1"]
[WhiteTeam "Belarus"]
[BlackTeam "Slovakia"]
[WhiteTeamCountry "BLR"]
[BlackTeamCountry "SVK"]
[TimeControl "40/5400+30:1800+30"]

1. e4 {[%emt 0:00:00]} c5 {[%emt 0:00:00]} 2. Nf3 {[%emt 0:00:00]} d6 {[%emt 0:00:00]} 3. Bb5+ {[%emt 0:00:00]} Nd7 {[%emt 0:00:00]} 4. O-O {[%emt 0:00:08]} a6 {[%emt 0:00:39]} 5. Bxd7+ {[%emt 0:00:09]} Bxd7 {[%emt 0:00:02]} 6. d4 {[%emt 0:00:35]} cxd4 {[%emt 0:00:35]} 7. Qxd4 {[%emt 0:00:24]} Rc8 {[%emt 0:03:10]} 8. c4 {[%emt 0:01:47]} Qc7 {[%emt 0:01:47]} 9. b3 {[%emt 0:01:37]} e5 {[%emt 0:00:48]} 10. Qd3 {[%emt 0:04:33]} b5 {[%emt 0:03:57]} 11. Nbd2 {[%emt 0:00:45]} Nf6 {[%emt 0:03:59]} 12. Bb2 {[%emt 0:09:10]} Be7 {[%emt 0:03:00]} 13. Rac1 {[%emt 0:00:39]} Qb7 {[%emt 0:06:35]} 14. c5 {[%emt 0:10:49]} dxc5 {[%emt 0:04:59]} 15. Nxe5 {[%emt 0:00:17]} Be6 {[%emt 0:03:44]} 16. f4 {[%emt 0:11:05]} O-O {[%emt 0:05:45]} 17. f5 {[%emt 0:02:52]} Rcd8 {[%emt 0:06:26]} 18. Qe2 {[%emt 0:11:41]} Bc8 {[%emt 0:00:42]} 19. Rcd1 {[%emt 0:04:27]} Qb6 {[%emt 0:09:19]} 20. Kh1 {[%emt 0:04:08]} Rfe8 {[%emt 0:01:33]} 21. Nef3 {[%emt 0:06:19]} Bf8 {[%emt 0:07:03]} 22. Ng5 {[%emt 0:05:48]} h6 {[%emt 0:03:02]} 23. Nh3 {[%emt 0:00:05]} Bb7 {[%emt 0:01:05]} 24. Nf2 {[%emt 0:05:02]} Rd7 {[%emt 0:09:20]} 25. Bxf6 {[%emt 0:01:40]} Qxf6 {[%emt 0:00:34]} 26. Ng4 {[%emt 0:00:10]} Qb2 {[%emt 0:02:58]} 27. Qf2 {[%emt 0:04:39]} Red8 {[%emt 0:02:19]} 28. Qg3 {[%emt 0:04:15]} Kh7 {[%emt 0:05:39]} 29. Ne5 {[%emt 0:04:39]} Bd6 {[%emt 0:06:47]} 30. f6 {[%emt 0:01:32]} g6 {[%emt 0:02:02]} 31. Ndc4 {[%emt 0:01:03]} bxc4 {[%emt 0:01:40]} 32. Rxd6 {[%emt 0:00:54]} Rxd6 {[%emt 0:00:31]} 33. h4 {[%emt 0:03:47]} Rd1 {[%emt 0:01:46]} 34. Rxd1 {[%emt 0:00:25]} Rxd1+ {[%emt 0:00:01]} 35. Kh2 {[%emt 0:00:05]} Qc1 {[%emt 0:01:01]} 36. Qg4 {[%emt 0:01:01]} Rh1+ {[%emt 0:00:14]} 37. Kg3 {[%emt 0:00:04]} Qe1+ {[%emt 0:00:34]} 38. Kf3 {[%emt 0:00:36]} Rf1# {[%emt 0:00:06]} 0-1

[Event "EYTCC U18 Girls 2019"]
[Site "Pardubice"]
[Date "2019.07.13"]
[Round "3.37"]
[White "Katkov, Michelle"]
[Black "Cvitan, Ena"]
[Result "1/2-1/2"]
[ECO "B13"]
[WhiteElo "2129"]
[BlackElo "2202"]
[Annotator "NA"]
[PlyCount "62"]
[EventDate "2019.07.11"]
[EventType "swiss"]
[EventCountry "CZE"]
[SourceTitle "playchess.com"]
[Source "ChessBase"]
[SourceQuality "1"]
[WhiteTeam "Israel"]
[BlackTeam "Croatia"]
[WhiteTeamCountry "ISR"]
[BlackTeamCountry "CRO"]
[TimeControl "40/5400+30:1800+30"]

1. e4 {[%emt 0:00:00]} c6 {[%emt 0:00:06]} 2. d4 {[%emt 0:00:00]} d5 {[%emt 0:00:07]} 3. exd5 {[%emt 0:00:00]} cxd5 {[%emt 0:00:06]} 4. c4 {[%emt 0:00:00]} Nf6 {[%emt 0:00:19]} 5. Nc3 {[%emt 0:00:00]} Nc6 {[%emt 0:00:30]} 6. cxd5 {[%emt 0:00:36]} Nxd5 {[%emt 0:00:11]} 7. Bc4 {[%emt 0:00:06]} Be6 {[%emt 0:08:11]} 8. Bb3 {[%emt 0:00:38]} g6 {[%emt 0:01:27]} 9. Nf3 {[%emt 0:00:23]} Bg7 {[%emt 0:00:55]} 10. O-O {[%emt 0:00:19]} O-O {[%emt 0:00:39]} 11. Re1 {[%emt 0:01:35]} Rc8 {[%emt 0:03:27]} 12. Bg5 {[%emt 0:01:24]} h6 {[%emt 0:02:02]} 13. Bh4 {[%emt 0:04:47]} Qa5 {[%emt 0:00:45]} 14. Bxd5 {[%emt 0:34:26]} Bxd5 {[%emt 0:01:13]} 15. Bxe7 {[%emt 0:04:54]} Bxf3 {[%emt 0:20:46]} 16. Qxf3 {[%emt 0:00:21]} Rfe8 {[%emt 0:05:23]} 17. Bf6 {[%emt 0:08:47]} Nxd4 {[%emt 0:05:09]} 18. Bxd4 {[%emt 0:06:44]} Bxd4 {[%emt 0:00:13]} 19. Qxb7 {[%emt 0:04:18]} Bxc3 {[%emt 0:04:49]} 20. Rxe8+ {[%emt 0:01:04]} Rxe8 {[%emt 0:00:08]} 21. bxc3 {[%emt 0:00:07]} Qxc3 {[%emt 0:00:36]} 22. Rf1 {[%emt 0:02:24]} Qd4 {[%emt 0:03:50]} 23. Qf3 {[%emt 0:04:42]} h5 {[%emt 0:14:10]} 24. Rd1 {[%emt 0:06:27]} Qd2 {[%emt 0:11:34]} 25. h4 {[%emt 0:07:40]} Re1+ {[%emt 0:02:40]} 26. Rxe1 {[%emt 0:00:09]} Qxe1+ {[%emt 0:00:01]} 27. Kh2 {[%emt 0:00:09]} Qe5+ {[%emt 0:00:11]} 28. g3 {[%emt 0:01:13]} Qd4 {[%emt 0:00:53]} 29. Kg2 {[%emt 0:00:26]} Kg7 {[%emt 0:00:06]} 30. Qc6 {[%emt 0:01:10]} a5 {[%emt 0:02:25]} 31. a4 {[%emt 0:00:13]} Qe5 {[%emt 0:00:30]} 1/2-1/2

[Event "EYTCC U18 Girls 2019"]
[Site "Pardubice"]
[Date "2019.07.13"]
[Round "3.38"]
[White "Koksa, Jelena"]
[Black "Levitan, Ronit"]
[Result "0-1"]
[ECO "C44"]
[WhiteElo "1781"]
[BlackElo "2022"]
[Annotator "NA"]
[PlyCount "102"]
[EventDate "2019.07.11"]
[EventType "swiss"]
[EventCountry "CZE"]
[SourceTitle "playchess.com"]
[Source "ChessBase"]
[SourceQuality "1"]
[WhiteTeam "Croatia"]
[BlackTeam "Israel"]
[WhiteTeamCountry "CRO"]
[BlackTeamCountry "ISR"]
[TimeControl "40/5400+30:1800+30"]

1. e4 {[%emt 0:00:00]} e5 {[%emt 0:00:00]} 2. Nf3 {[%emt 0:00:00]} Nc6 {[%emt 0:00:00]} 3. d4 {[%emt 0:00:00]} exd4 {[%emt 0:00:00]} 4. Nxd4 {[%emt 0:00:00]} Nf6 {[%emt 0:00:10]} 5. Nxc6 {[%emt 0:00:13]} bxc6 {[%emt 0:00:16]} 6. Bd3 {[%emt 0:00:07]} Bc5 {[%emt 0:02:55]} 7. e5 {[%emt 0:01:35]} Nd5 {[%emt 0:02:34]} 8. Qg4 {[%emt 0:01:45]} g6 {[%emt 0:04:21]} 9. Bh6 {[%emt 0:05:48]} d6 {[%emt 0:01:14]} 10. Qa4 {[%emt 0:01:08]} Bd7 {[%emt 0:02:44]} 11. exd6 {[%emt 0:06:37]} cxd6 {[%emt 0:01:56]} 12. O-O {[%emt 0:01:10]} Qf6 {[%emt 0:03:03]} 13. Nc3 {[%emt 0:10:37]} Nb6 {[%emt 0:15:23]} 14. Qe4+ {[%emt 0:20:46]} Kd8 {[%emt 0:00:48]} 15. h4 {[%emt 0:03:56]} d5 {[%emt 0:05:32]} 16. Qf4 {[%emt 0:02:04]} Qxf4 {[%emt 0:01:02]} 17. Bxf4 {[%emt 0:00:05]} a5 {[%emt 0:05:41]} 18. Be5 {[%emt 0:06:35]} Re8 {[%emt 0:00:15]} 19. Rfe1 {[%emt 0:00:52]} Kc8 {[%emt 0:02:01]} 20. Bf6 {[%emt 0:08:17]} Kb7 {[%emt 0:00:28]} 21. Ne2 {[%emt 0:08:34]} Re6 {[%emt 0:02:58]} 22. Bd4 {[%emt 0:01:40]} Be7 {[%emt 0:03:49]} 23. Bxb6 {[%emt 0:03:58]} Kxb6 {[%emt 0:00:07]} 24. h5 {[%emt 0:05:03]} Bf6 {[%emt 0:01:03]} 25. hxg6 {[%emt 0:00:56]} hxg6 {[%emt 0:00:24]} 26. Nf4 {[%emt 0:01:38]} Rxe1+ {[%emt 0:01:20]} 27. Rxe1 {[%emt 0:00:01]} a4 {[%emt 0:01:05]} 28. c4 {[%emt 0:02:18]} dxc4 {[%emt 0:05:28]} 29. Bxc4 {[%emt 0:00:06]} Re8 {[%emt 0:04:42]} 30. Rxe8 {[%emt 0:01:11]} Bxe8 {[%emt 0:00:15]} 31. b3 {[%emt 0:00:13]} a3 {[%emt 0:00:27]} 32. Nd3 {[%emt 0:00:33]} Bd4 {[%emt 0:08:07]} 33. Kf1 {[%emt 0:00:41]} g5 {[%emt 0:02:17]} 34. Ke2 {[%emt 0:02:40]} f6 {[%emt 0:02:46]} 35. f3 {[%emt 0:04:55]} Bg6 {[%emt 0:00:19]} 36. Nc1 {[%emt 0:01:19]} Kc5 {[%emt 0:00:28]} 37. Nd3+ {[%emt 0:00:19]} Kd6 {[%emt 0:01:18]} 38. Kd2 {[%emt 0:00:39]} Bf5 {[%emt 0:03:22]} 39. g4 {[%emt 0:00:34]} Bg6 {[%emt 0:00:23]} 40. Nc1 {[%emt 0:00:22]} Be5 {[%emt 0:02:27]} 41. Nd3 {[%emt 0:30:33]} Bh7 {[%emt 0:32:23]} 42. b4 {[%emt 0:00:00]} f5 {[%emt 0:00:00]} 43. Nxe5 {[%emt 0:00:00]} Kxe5 {[%emt 0:00:00]} 44. gxf5 {[%emt 0:00:00]} Bxf5 {[%emt 0:00:00]} 45. Ke3 {[%emt 0:00:00]} Bc2 {[%emt 0:00:00]} 46. b5 {[%emt 0:00:00]} cxb5 {[%emt 0:00:00]} 47. Bxb5 {[%emt 0:00:00]} Bb3 {[%emt 0:00:00]} 48. Kd3 {[%emt 0:00:00]} Bxa2 {[%emt 0:00:00]} 49. Kc2 {[%emt 0:00:00]} Bd5 {[%emt 0:00:00]} 50. Be2 {[%emt 0:00:00]} Kf4 {[%emt 0:00:00]} 51. Bd1 {[%emt 0:00:00]} Bxf3 {[%emt 0:00:00]} 0-1

[Event "EYTCC U18 Girls 2019"]
[Site "Pardubice"]
[Date "2019.07.13"]
[Round "3.39"]
[White "Pribylova, Sofie"]
[Black "Kuhar, Larisa"]
[Result "0-1"]
[ECO "A43"]
[WhiteElo "2093"]
[BlackElo "1894"]
[Annotator "NA"]
[PlyCount "82"]
[EventDate "2019.07.11"]
[EventType "swiss"]
[EventCountry "CZE"]
[SourceTitle "playchess.com"]
[Source "ChessBase"]
[SourceQuality "1"]
[WhiteTeam "Czech Republic"]
[BlackTeam "Slovenia"]
[WhiteTeamCountry "CZE"]
[BlackTeamCountry "SLO"]
[TimeControl "40/5400+30:1800+30"]

1. d4 {[%emt 0:00:00]} Nf6 {[%emt 0:00:00]} 2. Nf3 {[%emt 0:00:00]} c5 {[%emt 0:00:00]} 3. d5 {[%emt 0:00:00]} b5 {[%emt 0:00:12]} 4. Bg5 {[%emt 0:00:25]} Ne4 {[%emt 0:00:27]} 5. Bh4 {[%emt 0:00:25]} Bb7 {[%emt 0:00:51]} 6. a4 {[%emt 0:00:36]} Qa5+ {[%emt 0:02:14]} 7. Nbd2 {[%emt 0:00:30]} Bxd5 {[%emt 0:01:45]} 8. axb5 {[%emt 0:02:40]} Qc7 {[%emt 0:00:31]} 9. c4 {[%emt 0:18:15]} Bb7 {[%emt 0:01:27]} 10. Ra3 {[%emt 0:01:23]} d6 {[%emt 0:11:55]} 11. Qa1 {[%emt 0:02:12]} Qb6 {[%emt 0:02:24]} 12. Nxe4 {[%emt 0:03:55]} Bxe4 {[%emt 0:00:13]} 13. Nd2 {[%emt 0:00:58]} Bb7 {[%emt 0:02:05]} 14. e4 {[%emt 0:00:47]} h6 {[%emt 0:04:34]} 15. Be2 {[%emt 0:07:12]} Nd7 {[%emt 0:13:48]} 16. O-O {[%emt 0:03:17]} g5 {[%emt 0:15:25]} 17. Bg3 {[%emt 0:06:42]} Bg7 {[%emt 0:01:27]} 18. f4 {[%emt 0:03:58]} Nf6 {[%emt 0:11:56]} 19. Qb1 {[%emt 0:10:46]} Nh7 {[%emt 0:08:27]} 20. Bd3 {[%emt 0:08:13]} gxf4 {[%emt 0:01:43]} 21. Rxf4 {[%emt 0:01:43]} Ng5 {[%emt 0:01:28]} 22. Qf1 {[%emt 0:08:10]} Be5 {[%emt 0:02:11]} 23. Rg4 {[%emt 0:00:14]} Bxb2 {[%emt 0:03:06]} 24. Ra2 {[%emt 0:00:22]} Bd4+ {[%emt 0:00:54]} 25. Bf2 {[%emt 0:00:50]} Bf6 {[%emt 0:00:36]} 26. Bh4 {[%emt 0:04:47]} Bc8 {[%emt 0:01:02]} 27. Rf4 {[%emt 0:00:39]} Be5 {[%emt 0:00:24]} 28. Bxg5 {[%emt 0:00:40]} hxg5 {[%emt 0:00:15]} 29. Rf3 {[%emt 0:01:57]} g4 {[%emt 0:00:58]} 30. Rf4 {[%emt 0:00:20]} Bxf4 {[%emt 0:00:24]} 31. Qxf4 {[%emt 0:00:03]} Be6 {[%emt 0:01:40]} 32. Ra6 {[%emt 0:02:45]} Qc7 {[%emt 0:02:32]} 33. Nb3 {[%emt 0:01:46]} Bc8 {[%emt 0:01:24]} 34. Ra1 {[%emt 0:02:20]} a6 {[%emt 0:01:30]} 35. Rf1 {[%emt 0:01:14]} Be6 {[%emt 0:00:30]} 36. e5 {[%emt 0:04:42]} axb5 {[%emt 0:01:07]} 37. exd6 {[%emt 0:01:44]} Qxd6 {[%emt 0:00:27]} 38. Qe3 {[%emt 0:01:09]} bxc4 {[%emt 0:01:25]} 39. Be4 {[%emt 0:00:34]} Ra3 {[%emt 0:00:25]} 40. Qxc5 {[%emt 0:01:00]} Rxb3 {[%emt 0:01:01]} 41. Bc6+ {[%emt 0:30:16]} Kf8 {[%emt 0:30:37]} 0-1

[Event "EYTCC U18 Girls 2019"]
[Site "Pardubice"]
[Date "2019.07.13"]
[Round "3.40"]
[White "Kralj, Nika"]
[Black "Nemcova, Karin"]
[Result "1/2-1/2"]
[ECO "B34"]
[WhiteElo "1807"]
[BlackElo "1956"]
[Annotator "NA"]
[PlyCount "69"]
[EventDate "2019.07.11"]
[EventType "swiss"]
[EventCountry "CZE"]
[SourceTitle "playchess.com"]
[Source "ChessBase"]
[SourceQuality "1"]
[WhiteTeam "Slovenia"]
[BlackTeam "Czech Republic"]
[WhiteTeamCountry "SLO"]
[BlackTeamCountry "CZE"]
[TimeControl "40/5400+30:1800+30"]

1. e4 {[%emt 0:00:00]} c5 {[%emt 0:00:00]} 2. Nf3 {[%emt 0:00:00]} Nc6 {[%emt 0:00:00]} 3. Nc3 {[%emt 0:00:20]} g6 {[%emt 0:00:00]} 4. d4 {[%emt 0:00:11]} cxd4 {[%emt 0:00:08]} 5. Nxd4 {[%emt 0:00:01]} Bg7 {[%emt 0:00:11]} 6. Nb3 {[%emt 0:00:07]} Nf6 {[%emt 0:00:26]} 7. Be2 {[%emt 0:00:07]} O-O {[%emt 0:00:44]} 8. O-O {[%emt 0:00:07]} d6 {[%emt 0:02:30]} 9. Bg5 {[%emt 0:00:07]} a5 {[%emt 0:02:01]} 10. a4 {[%emt 0:01:15]} Be6 {[%emt 0:00:33]} 11. Kh1 {[%emt 0:02:00]} Nd7 {[%emt 0:08:44]} 12. f4 {[%emt 0:04:24]} Nb6 {[%emt 0:04:28]} 13. f5 {[%emt 0:11:03]} Bc4 {[%emt 0:01:05]} 14. Bxc4 {[%emt 0:04:59]} Nxc4 {[%emt 0:01:43]} 15. Nd5 {[%emt 0:00:10]} h6 {[%emt 0:17:55]} 16. f6 {[%emt 0:02:27]} hxg5 {[%emt 0:00:50]} 17. fxg7 {[%emt 0:00:17]} Kxg7 {[%emt 0:00:12]} 18. Qd3 {[%emt 0:01:17]} N4e5 {[%emt 0:01:40]} 19. Qe3 {[%emt 0:06:10]} g4 {[%emt 0:01:55]} 20. Nd4 {[%emt 0:03:09]} Rh8 {[%emt 0:06:54]} 21. c3 {[%emt 0:11:50]} Nxd4 {[%emt 0:13:26]} 22. cxd4 {[%emt 0:00:50]} Nc6 {[%emt 0:00:34]} 23. Qf4 {[%emt 0:02:54]} Rf8 {[%emt 0:01:21]} 24. Rad1 {[%emt 0:00:56]} Nxd4 {[%emt 0:06:13]} 25. Nxe7 {[%emt 0:03:01]} Qxe7 {[%emt 0:02:01]} 26. Rxd4 {[%emt 0:00:08]} Rae8 {[%emt 0:03:59]} 27. Qxg4 {[%emt 0:02:38]} Qe5 {[%emt 0:00:41]} 28. Qd1 {[%emt 0:03:58]} Rh8 {[%emt 0:00:29]} 29. h3 {[%emt 0:00:58]} Rh4 {[%emt 0:02:39]} 30. Qb3 {[%emt 0:06:56]} Re7 {[%emt 0:05:31]} 31. Rd5 {[%emt 0:03:30]} Qxe4 {[%emt 0:01:46]} 32. Rxd6 {[%emt 0:00:17]} Qc4 {[%emt 0:09:26]} 33. Qf3 {[%emt 0:02:14]} Rhe4 {[%emt 0:03:33]} 34. Qf6+ {[%emt 0:10:21]} Kg8 {[%emt 0:00:19]} 35. Rd8+ {[%emt 0:04:19]} 1/2-1/2

[Event "EYTCC U18 Girls 2019"]
[Site "Pardubice"]
[Date "2019.07.13"]
[Round "3.41"]
[White "Koubova, Anna Marie"]
[Black "Jaufarally, Nadia"]
[Result "0-1"]
[ECO "E62"]
[WhiteElo "2094"]
[BlackElo "1944"]
[Annotator "NA"]
[PlyCount "48"]
[EventDate "2019.07.11"]
[EventType "swiss"]
[EventCountry "CZE"]
[SourceTitle "playchess.com"]
[Source "ChessBase"]
[SourceQuality "1"]
[WhiteTeam "Czech Republic"]
[BlackTeam "England"]
[WhiteTeamCountry "CZE"]
[BlackTeamCountry "ENG"]
[TimeControl "40/5400+30:1800+30"]

1. d4 {[%emt 0:00:00]} Nf6 {[%emt 0:00:00]} 2. c4 {[%emt 0:00:00]} g6 {[%emt 0:00:00]} 3. g3 {[%emt 0:00:00]} Bg7 {[%emt 0:00:00]} 4. Bg2 {[%emt 0:00:00]} O-O {[%emt 0:00:00]} 5. Nc3 {[%emt 0:00:00]} d6 {[%emt 0:00:06]} 6. Nf3 {[%emt 0:00:06]} Nc6 {[%emt 0:00:09]} 7. O-O {[%emt 0:00:07]} e5 {[%emt 0:00:19]} 8. d5 {[%emt 0:12:24]} Nb8 {[%emt 0:00:26]} 9. e4 {[%emt 0:00:08]} a5 {[%emt 0:00:12]} 10. Ne1 {[%emt 0:00:27]} Na6 {[%emt 0:00:22]} 11. Nd3 {[%emt 0:00:16]} Nd7 {[%emt 0:00:44]} 12. Be3 {[%emt 0:03:25]} Ndc5 {[%emt 0:01:30]} 13. f4 {[%emt 0:05:44]} exf4 {[%emt 0:26:48]} 14. gxf4 {[%emt 0:00:32]} Nxd3 {[%emt 0:03:07]} 15. Qxd3 {[%emt 0:00:07]} f5 {[%emt 0:00:10]} 16. Bd4 {[%emt 0:00:40]} Nb4 {[%emt 0:00:57]} 17. Qd2 {[%emt 0:02:34]} Bxd4+ {[%emt 0:01:03]} 18. Qxd4 {[%emt 0:01:48]} Nc2 {[%emt 0:00:38]} 19. Qf2 {[%emt 0:01:34]} Nxa1 {[%emt 0:01:29]} 20. e5 {[%emt 0:01:08]} dxe5 {[%emt 0:29:14]} 21. fxe5 {[%emt 0:00:09]} Qg5 {[%emt 0:00:59]} 22. e6 {[%emt 0:01:52]} Qg4 {[%emt 0:07:41]} 23. Ne4 {[%emt 0:15:55]} Bxe6 {[%emt 0:03:09]} 24. h3 {[%emt 0:03:24]} fxe4 {[%emt 0:01:35]} 0-1